bitfinex-derivatives/quotes_SOLF0:USTF0_20240816
["timestamp","ask_amount","ask_price","bid_price","bid_amount"]
[1723778365795,14.34892576,142.53,142.5,0.05348114]
[1723778365989,10.81374073,142.53,142.5,0.05348114]
[1723778366796,14.33173743,142.53,142.5,0.05348114]
[1723778367000,16.78713743,142.53,142.5,0.05348114]
[1723778367303,13.26914073,142.53,142.5,0.05348114]
[1723778367495,0.05374073,142.53,142.5,0.05348114]
[1723778367899,0.05374073,142.53,142.5,2.50918114]
[1723778370305,0.05374073,142.53,142.51,2.4555]
[1723778370802,0.05374073,142.53,142.5,0.05348114]
[1723778371003,0.05374073,142.53,142.5,2.50918114]
[1723778371298,0.05374073,142.53,142.5,0.05348114]
[1723778371799,14.24334026,142.53,142.5,0.05348114]
[1723778372103,10.81374073,142.53,142.5,0.05348114]
[1723778372305,2.4555,142.52,142.5,0.05348114]
[1723778373599,10.76,142.51,142.5,0.05348114]
[1723778376607,13.2156,142.51,142.5,0.05348114]
[1723778377109,2.4556,142.51,142.5,0.05348114]
[1723778377303,13.2156,142.51,142.5,0.05348114]
[1723778377907,0.05374073,142.53,142.5,0.05348114]
[1723778378602,0.05374073,142.53,142.5,10.81348114]
[1723778378806,0.05374073,142.53,142.5,0.05348114]
[1723778379007,0.05374073,142.53,142.5,10.81348114]
[1723778379308,0.05374073,142.53,142.51,2.4554]
[1723778379505,0.05374073,142.53,142.5,10.81348114]
[1723778380107,0.05374073,142.53,142.52,2.4554]
[1723778382519,13.2143,142.59,142.54,2.4549]
[1723778383720,0.04550859,142.58,142.55,0.04690241]
[1723778386320,2.4545,142.57,142.55,0.04690241]
[1723778387515,2.49990859,142.58,142.55,0.04690241]
[1723778389420,0.04550859,142.58,142.55,2.50170241]
[1723778389622,0.04550859,142.58,142.55,0.04690241]
[1723778390436,0.04550859,142.58,142.55,10.80690241]
[1723778391727,0.04550859,142.58,142.57,2.4545]
[1723778396024,0.04550859,142.58,142.56,2.4547]
[1723778396526,0.04550859,142.58,142.55,2.50160241]
[1723778398020,0.04550859,142.58,142.57,2.4545]
[1723778403032,15.54,142.66,142.57,10.76]
[1723778403325,17.9931,142.66,142.59,10.76]
[1723778403725,4.78,142.66,142.59,10.76]
[1723778403925,4.78,142.66,142.61,10.76]
[1723778404133,0.04560356,142.64,142.61,10.80894325]
[1723778404334,0.04560356,142.64,142.63,2.4535]
[1723778406526,0.04560356,142.64,142.63,13.2135]
[1723778406829,4.78,142.69,142.66,2.4529]
[1723778407025,14.32071179,142.7,142.63,10.76]
[1723778407424,16.77301179,142.7,142.65,2.453]
[1723778407632,0.04422122,142.69,142.66,0.04977685]
[1723778408532,10.76,142.68,142.66,0.04977685]
[1723778408830,10.76,142.67,142.66,0.04977685]
[1723778409235,13.2128,142.67,142.66,0.04977685]
[1723778409438,17.9928,142.67,142.66,0.04977685]
[1723778410429,4.78,142.67,142.66,0.04977685]
[1723778411629,0.04422122,142.69,142.66,0.04977685]
[1723778412536,0.04422122,142.69,142.66,2.50277685]
[1723778412934,10.76,142.68,142.66,0.04977685]
[1723778413327,10.76,142.67,142.66,0.04977685]
[1723778413527,13.2128,142.67,142.66,0.04977685]
[1723778413733,15.54,142.67,142.59,12.0505]
[1723778414034,10.76,142.65,142.59,1.2905]
[1723778414839,10.80890083,142.63,142.61,0.049246]
[1723778415028,14.2805015,142.62,142.61,0.049246]
[1723778415538,4.78,142.62,142.61,0.049246]
[1723778415836,8.30575807,142.62,142.61,0.049246]
[1723778416140,8.33344269,142.62,142.61,0.049246]
[1723778416434,4.78,142.62,142.61,0.049246]
[1723778416629,8.30260413,142.62,142.61,0.049246]
[1723778417440,10.75630413,142.62,142.61,0.049246]
[1723778418141,2.4542,142.6,142.52,28.2748]
[1723778418341,2.4542,142.6,142.56,2.4547]
[1723778418545,2.4539,142.61,142.52,28.2748]
[1723778418741,35.23260413,142.62,142.52,28.2748]
[1723778418936,35.23260413,142.62,142.52,1.3448]
[1723778419138,1.2338,142.65,142.38,73.5156893]
[1723778419139,26.97619224,142.58,142.48,26.93]
[1723778419440,2.6607,142.66,142.5,26.93]
[1723778419441,4.78,142.57,142.5,26.93]
[1723778419635,4.78,142.56,142.5,26.93]
[1723778420340,0.04967521,142.54,142.52,0.05255361]
[1723778420538,0.04967521,142.54,142.53,2.4552]
[1723778422744,26.93,142.62,142.56,2.4547]
[1723778422933,4.78,142.61,142.53,29.5429]
[1723778423844,0.04516058,142.58,142.56,0.05037606]
[1723778426446,2.49956058,142.58,142.56,0.05037606]
[1723778427241,0.04516058,142.58,142.56,0.05037606]
[1723778427846,2.4545,142.57,142.56,0.05037606]
[1723778431043,7.2345,142.57,142.56,0.05037606]
[1723778431540,4.78,142.57,142.56,0.05037606]
[1723778431746,0.04516058,142.58,142.56,0.05037606]
[1723778432147,0.04516058,142.58,142.56,2.50507606]
[1723778433247,0.04516058,142.58,142.56,0.05037606]
[1723778435543,2.4545,142.57,142.56,0.05037606]
[1723778435853,26.97516058,142.58,142.49,1.2539]
[1723778436049,26.93,142.56,142.49,1.2539]
[1723778436251,2.4551,142.54,142.49,3.7098]
[1723778436550,26.93,142.54,142.44,30.36262562]
[1723778436847,5.97701185,142.53,142.48,2.456]
[1723778437051,0.04875052,142.52,142.49,0.05296532]
[1723778437442,2.50425052,142.52,142.49,0.05296532]
[1723778438646,2.4556,142.51,142.49,0.05296532]
[1723778440553,29.43415052,142.52,142.49,0.05296532]
[1723778441151,2.4556,142.51,142.49,0.05296532]
[1723778442448,31.71,142.5,142.38,70.34321713]
[1723778442646,53.86,142.39,142.32,21.51033171]
[1723778442849,3.53677951,142.39,142.24,28.1638]
[1723778443050,26.93,142.38,142.28,26.93]
[1723778443254,3.52204001,142.37,142.29,1.2507]
[1723778443459,26.93,142.41,142.3,26.93]
[1723778443656,26.93,142.41,142.29,1.2507]
[1723778443657,0.05225473,142.34,142.32,26.97560912]
[1723778443854,2.4584,142.35,142.32,0.04560912]
[1723778444051,26.93,142.39,142.31,2.4738]
[1723778444255,0.05312016,142.34,142.32,0.04620174]
[1723778444455,26.93,142.39,142.32,0.04620174]
[1723778444848,26.93,142.34,142.32,0.04620174]
[1723778445055,2.4587,142.33,142.32,0.04620174]
[1723778445452,29.3887,142.33,142.32,0.04620174]
[1723778445851,37.96091005,142.33,142.32,0.04620174]
[1723778446052,5.08,142.33,142.32,0.04620174]
[1723778446653,7.5387,142.33,142.32,0.04620174]
[1723778447756,8.54806283,142.33,142.32,0.04620174]
[1723778448561,11.00676283,142.33,142.32,0.04620174]
[1723778450563,5.92676283,142.33,142.32,0.04620174]
[1723778453659,3.46806283,142.33,142.26,2.4598]
[1723778453860,26.93,142.31,142.26,2.4598]
[1723778454067,30.39325154,142.31,142.26,2.4598]
[1723778454267,30.39325154,142.31,142.23,5.08]
[1723778454268,30.39325154,142.31,142.25,2.46]
[1723778454665,0.04443415,142.29,142.27,0.05146775]
[1723778455773,2.50383415,142.29,142.27,0.05146775]
[1723778456365,2.50383415,142.29,142.22,3.8246]
[1723778456366,26.93,142.28,142.22,3.8246]
[1723778456871,2.4598,142.27,142.22,6.2851]
[1723778457573,0.04476654,142.26,142.23,0.04874459]
[1723778457775,5.08,142.29,142.23,26.97874459]
[1723778457969,26.93,142.35,142.25,26.93]
[1723778458572,26.93,142.35,142.26,1.2852]
[1723778458872,26.93,142.35,142.29,0.05245392]
[1723778458873,0.05254603,142.32,142.29,0.05245392]
[1723778459263,8.6436939,142.38,142.29,26.98245392]
[1723778459465,8.6436939,142.38,142.34,2.4584]
[1723778459666,8.6436939,142.38,142.29,26.98245392]
[1723778459667,26.93,142.39,142.3,1.2945]
[1723778459873,2.4579,142.38,142.33,2.4586]
[1723778460070,26.93,142.39,142.3,1.2945]
[1723778460071,26.93,142.39,142.31,26.93]
[1723778460474,0.04774433,142.36,142.34,0.04639331]
[1723778461268,26.93,142.41,142.34,0.04639331]
[1723778461469,5.08,142.42,142.33,26.93]
[1723778461672,29.387,142.43,142.34,1.2962]
[1723778462066,26.93,142.45,142.35,26.93]
[1723778462269,26.93,142.45,142.36,5.08]
[1723778462475,0.0508676,142.41,142.39,0.04837823]
[1723778462670,5.08,142.46,142.39,0.04837823]
[1723778463173,0.04872074,142.44,142.39,0.04837823]
[1723778464469,0.04872074,142.44,142.42,2.457]
[1723778465467,0.04872074,142.44,142.39,0.04837823]
[1723778465975,0.04872074,142.44,142.41,2.4572]
[1723778466178,0.04872074,142.44,142.39,5.12837823]
[1723778466674,0.04872074,142.44,142.41,2.4572]
[1723778470976,33.73872074,142.44,142.39,0.04837823]
[1723778471476,33.69,142.42,142.39,0.04837823]
[1723778471682,37.28498371,142.42,142.39,0.04837823]
[1723778471981,36.1475,142.4,142.39,0.04837823]
[1723778472278,38.77,142.4,142.34,1.2962]
[1723778472480,2.4582,142.36,142.32,1.2685]
[1723778473283,2.4582,142.36,142.32,3.7273]
[1723778473482,0.05184882,142.35,142.33,0.04929634]
[1723778473984,2.51014882,142.35,142.33,0.04929634]
[1723778475182,2.4585,142.34,142.33,0.04929634]
[1723778477691,2.4589,142.32,142.28,2.4595]
[1723778478092,2.4589,142.32,142.27,3.7184]
[1723778478285,38.83,142.35,142.27,3.7184]
[1723778478286,3.5917908,142.31,142.27,1.2587]
[1723778478487,33.69,142.33,142.25,1.2932]
[1723778478689,33.69,142.3,142.25,1.2932]
[1723778478885,2.4595,142.29,142.28,0.05003628]
[1723778482391,2.4601,142.25,142.21,3.8093]
[1723778482890,2.4601,142.25,142.17,5.14]
[1723778483192,2.4602,142.24,142.2,2.4608]
[1723778483390,0.04487225,142.23,142.2,2.4608]
[1723778483695,0.04487225,142.23,142.21,0.05151089]
[1723778483897,2.50527225,142.23,142.21,0.05151089]
[1723778485096,33.69,142.22,142.14,3.9797]
[1723778485290,5.14,142.21,142.14,3.9797]
[1723778485494,7.6009,142.21,142.14,3.9797]
[1723778485695,7.6009,142.21,142.16,2.4616]
[1723778486194,0.04676772,142.2,142.17,2.5092711]
[1723778486394,33.69,142.29,142.18,33.69]
[1723778486694,5.14,142.28,142.18,33.69]
[1723778486897,2.4598,142.27,142.22,2.4605]
[1723778487392,2.4598,142.27,142.23,2.4604]
[1723778487592,0.04631725,142.26,142.23,2.51386103]
[1723778489594,0.04631725,142.26,142.23,0.05346103]
[1723778490093,2.4592,142.3,142.23,0.05346103]
[1723778490691,2.4592,142.3,142.25,2.4599]
[1723778490894,2.4592,142.3,142.22,1.2688]
[1723778491095,0.04933734,142.29,142.26,0.05382431]
[1723778491290,0.04933734,142.29,142.28,2.4595]
[1723778491496,33.69,142.34,142.26,0.05382431]
[1723778491696,2.4586,142.34,142.29,2.4592]
[1723778491999,42.36455769,142.36,142.29,2.4592]
[1723778492195,38.83,142.36,142.24,5.14]
[1723778492395,2.4587,142.34,142.25,33.69]
[1723778492595,38.83,142.36,142.25,33.69]
[1723778492805,0.04895317,142.31,142.28,0.04546374]
[1723778493101,2.4584,142.35,142.31,2.459]
[1723778493296,38.83,142.36,142.29,1.3113]
[1723778493498,5.14,142.36,142.33,2.4585]
[1723778493698,2.458,142.37,142.33,2.4585]
[1723778494296,0.05300131,142.36,142.34,0.04607714]
[1723778495496,0.05300131,142.36,142.35,2.4583]
[1723778496005,28.1,142.47,142.34,5.18607714]
[1723778496006,2.4573,142.41,142.34,5.18607714]
[1723778496297,5.14,142.45,142.3,1.2391]
[1723778496298,33.69,142.4,142.3,1.2391]
[1723778496497,33.69,142.4,142.32,5.14]
[1723778496695,2.4577,142.39,142.32,5.14]
[1723778496893,33.69,142.4,142.32,5.14]
[1723778497093,33.69,142.4,142.35,2.4582]
[1723778497094,0.04504994,142.37,142.35,2.4582]
[1723778497690,0.04504994,142.37,142.36,2.4582]
[1723778497890,5.14,142.45,142.33,33.69]
[1723778497891,33.69,142.44,142.33,33.69]
[1723778498199,36.1468,142.44,142.33,33.69]
[1723778498497,36.1468,142.44,142.34,1.3345]
[1723778499302,0.04888086,142.4,142.38,0.05148961]
[1723778499799,0.04888086,142.4,142.39,2.4575]
[1723778499994,5.14,142.45,142.38,0.05148961]
[1723778500198,2.4564,142.46,142.38,0.05148961]
[1723778500401,33.69,142.47,142.38,0.05148961]
[1723778500594,33.69,142.47,142.37,5.14]
[1723778500799,36.1463,142.47,142.37,5.14]
[1723778500999,0.0465804,142.43,142.41,0.05124398]
[1723778501603,0.0465804,142.43,142.42,2.4571]
[1723778501802,0.0465804,142.43,142.41,0.05124398]
[1723778502897,0.0465804,142.43,142.42,2.4571]
[1723778507108,2.4561,142.48,142.43,2.4569]
[1723778507501,38.83,142.49,142.43,2.4569]
[1723778507900,2.4565,142.46,142.42,2.4571]
[1723778508107,0.05376888,142.45,142.43,0.0473923]
[1723778510213,0.05376888,142.45,142.43,2.5042923]
[1723778510613,0.05376888,142.45,142.44,2.4568]
[1723778512707,0.05376888,142.45,142.43,0.0473923]
[1723778513213,3.549173,142.45,142.43,0.0473923]
[1723778514708,2.4568,142.44,142.43,0.0473923]
[1723778515103,0.05376888,142.45,142.43,0.0473923]
[1723778515910,5.14,142.49,142.43,0.0473923]
[1723778516116,26.96,142.49,142.43,0.0473923]
[1723778517023,0.05283841,142.47,142.43,0.0473923]
[1723778518020,5.2,142.52,142.44,28.08]
[1723778518316,3.48638258,142.55,142.45,34.9063]
[1723778518515,0.3879,142.6,142.45,1.2263]
[1723778518516,33.68,142.52,142.45,1.2263]
[1723778518710,37.14497219,142.52,142.45,1.2263]
[1723778518909,2.4559,142.5,142.45,3.6829]
[1723778519109,0.04959645,142.49,142.46,0.04678453]
[1723778519518,0.04959645,142.49,142.46,2.50308453]
[1723778520312,0.04959645,142.49,142.46,0.04678453]
[1723778520313,2.4561,142.48,142.46,0.04678453]
[1723778521007,0.04959645,142.49,142.46,0.04678453]
[1723778521415,0.04959645,142.49,142.46,2.50308453]
[1723778521718,0.04959645,142.49,142.46,0.04678453]
[1723778522517,0.04959645,142.49,142.47,2.4561]
[1723778522718,0.04959645,142.49,142.46,0.04678453]
[1723778523814,0.04959645,142.49,142.48,2.4561]
[1723778528016,0.04959645,142.49,142.46,0.04678453]
[1723778529019,33.68,142.48,142.46,0.04678453]
[1723778529226,38.88,142.48,142.46,0.04678453]
[1723778530523,38.88,142.48,142.4,1.2273]
[1723778531226,2.4567,142.45,142.4,3.6846]
[1723778531531,38.88,142.48,142.4,1.2273]
[1723778531728,0.04427835,142.44,142.42,2.457]
[1723778532226,0.04427835,142.44,142.41,2.50271212]
[1723778532727,0.04427835,142.44,142.41,0.04551212]
[1723778532932,0.04427835,142.44,142.42,2.4571]
[1723778533825,0.04427835,142.44,142.41,2.50281212]
[1723778534427,0.04427835,142.44,142.41,0.04551212]
[1723778535437,0.04427835,142.44,142.43,2.4569]
[1723778536434,0.04427835,142.44,142.42,2.4571]
[1723778536626,0.04427835,142.44,142.41,0.04551212]
[1723778537436,0.04427835,142.44,142.42,2.457]
[1723778540034,0.04427835,142.44,142.43,2.457]
[1723778544332,3.46835013,142.52,142.47,2.4562]
[1723778544534,228.0,142.59,142.47,30.46611191]
[1723778544535,2.4552,142.54,142.47,30.46611191]
[1723778544743,26.95,142.55,142.45,32.05]
[1723778545335,2.4554,142.52,142.47,2.4561]
[1723778545532,3.55490902,142.51,142.49,0.04782224]
[1723778545740,0.0458167,142.51,142.49,0.04782224]
[1723778548842,0.0458167,142.51,142.49,2.50362224]
[1723778549243,0.0458167,142.51,142.5,2.4557]
[1723778550843,0.0458167,142.51,142.49,0.04782224]
[1723778553746,0.0458167,142.51,142.5,2.4557]
[1723778554755,25.9158,142.67,142.5,26.95]
[1723778554756,26.95,142.59,142.5,26.95]
[1723778555050,32.05,142.59,142.5,32.05]
[1723778555449,35.57154562,142.59,142.5,32.05]
[1723778555848,35.57154562,142.59,142.53,2.50677754]
[1723778555849,2.4545,142.57,142.53,2.50677754]
[1723778556049,0.04981989,142.56,142.53,0.05167754]
[1723778557149,0.04981989,142.56,142.54,2.4549]
[1723778557346,0.04981989,142.56,142.53,0.05167754]
[1723778558449,0.04981989,142.56,142.53,27.00167754]
[1723778559052,0.04981989,142.56,142.55,2.4549]
[1723778563846,0.04981989,142.56,142.54,3.7223]
[1723778564049,0.04981989,142.56,142.54,2.455]
[1723778564248,0.04981989,142.56,142.53,0.05167754]
[1723778567454,2.50451989,142.56,142.53,0.05167754]
[1723778568261,0.04981989,142.56,142.53,0.05167754]
[1723778569760,2.4549,142.55,142.53,0.05167754]
[1723778570355,0.04981989,142.56,142.53,2.50687754]
[1723778571563,2.50461989,142.56,142.53,0.05167754]
[1723778573052,2.50461989,142.56,142.53,2.50687754]
[1723778573662,2.50461989,142.56,142.53,0.05167754]
[1723778575252,0.04981989,142.56,142.53,0.05167754]
[1723778576459,0.04981989,142.56,142.53,2.50687754]
[1723778576859,0.04981989,142.56,142.53,0.05167754]
[1723778577158,2.50461989,142.56,142.53,0.05167754]
[1723778577560,0.04981989,142.56,142.53,0.05167754]
[1723778578658,2.4551,142.54,142.53,0.05167754]
[1723778580067,0.04981989,142.56,142.53,2.50687754]
[1723778580256,0.04981989,142.56,142.53,0.05167754]
[1723778580652,2.4551,142.54,142.53,0.05167754]
[1723778581659,0.04981989,142.56,142.53,0.05167754]
[1723778581660,2.455,142.55,142.53,0.05167754]
[1723778581862,0.04981989,142.56,142.53,0.05167754]
[1723778582262,2.455,142.55,142.53,0.05167754]
[1723778582968,0.04981989,142.56,142.53,0.05167754]
[1723778583564,2.4549,142.55,142.53,0.05167754]
[1723778584273,0.04981989,142.56,142.53,0.05167754]
[1723778584866,2.4551,142.54,142.53,0.05167754]
[1723778587069,4.9,142.54,142.45,1.2613]
[1723778587375,4.9,142.54,142.42,26.95]
[1723778587376,26.95,142.51,142.42,26.95]
[1723778587564,26.95,142.5,142.41,1.2648]
[1723778587762,26.95,142.5,142.43,2.4568]
[1723778587966,26.95,142.5,142.41,1.2648]
[1723778588166,0.04437724,142.48,142.45,0.05075481]
[1723778588766,2.50057724,142.48,142.45,0.05075481]
[1723778591171,2.4563,142.47,142.45,0.05075481]
[1723778591369,0.04437724,142.48,142.45,0.05075481]
[1723778591679,2.4564,142.46,142.45,0.05075481]
[1723778592971,2.4563,142.47,142.45,0.05075481]
[1723778594876,2.4564,142.46,142.45,0.05075481]
[1723778601579,26.95,142.46,142.36,35.270116]
[1723778601778,26.95,142.46,142.36,30.470116]
[1723778601970,26.95,142.46,142.37,2.4579]
[1723778602680,2.4573,142.42,142.4,0.0494985]
[1723778602873,0.05024683,142.43,142.4,0.0494985]
[1723778603071,53.9,142.41,142.2,7.3828]
[1723778603271,4.8,142.44,142.21,1.2927]
[1723778603272,228.0,142.44,142.21,1.2927]
[1723778603480,5.07624685,142.43,142.21,1.2927]
[1723778603685,26.95,142.34,142.22,26.95]
[1723778603882,10.53671188,142.44,142.25,2.4599]
[1723778604177,0.27647415,142.43,142.28,26.95]
[1723778604381,26.95,142.37,142.28,26.95]
[1723778604579,4.8,142.36,142.26,29.5455]
[1723778604785,26.95,142.35,142.26,29.5455]
[1723778605085,26.95,142.35,142.33,0.05354974]
[1723778605276,2.4585,142.34,142.33,0.05354974]
[1723778605480,26.95,142.35,142.26,2.5955]
[1723778605678,26.95,142.33,142.26,2.5955]
[1723778606182,8.39387135,142.36,142.27,26.95]
[1723778606183,3.54526296,142.36,142.27,26.95]
[1723778606378,26.95,142.37,142.27,26.95]
[1723778606582,4.8,142.36,142.27,26.95]
[1723778606883,2.4585,142.34,142.27,26.95]
[1723778607071,0.05094337,142.33,142.31,0.0495285]
[1723778609273,2.50964337,142.33,142.31,0.0495285]
[1723778611181,2.4589,142.32,142.31,0.0495285]
[1723778611383,7.2589,142.32,142.31,0.0495285]
[1723778612885,2.4589,142.32,142.31,0.0495285]
[1723778613288,2.50964337,142.33,142.31,0.0495285]
[1723778613485,4.8,142.32,142.31,0.0495285]
[1723778613677,2.50964337,142.33,142.31,0.0495285]
[1723778613678,0.05094337,142.33,142.31,0.0495285]
[1723778614883,4.8,142.37,142.31,0.0495285]
[1723778615185,4.8,142.38,142.3,26.95]
[1723778615381,29.4077,142.39,142.3,30.43665319]
[1723778615586,34.2077,142.39,142.3,30.43665319]
[1723778615781,37.65922319,142.39,142.3,26.95]
[1723778615987,0.05265648,142.36,142.33,2.50499089]
[1723778616378,0.05265648,142.36,142.33,0.04639089]
[1723778617488,2.51095648,142.36,142.33,0.04639089]
[1723778618485,0.05265648,142.36,142.33,0.04639089]
[1723778619586,2.51085648,142.36,142.33,0.04639089]
[1723778620789,26.95,142.35,142.33,0.04639089]
[1723778621484,4.87265648,142.36,142.33,0.04639089]
[1723778621886,2.4584,142.35,142.33,0.04639089]
[1723778622184,4.87265648,142.36,142.33,0.04639089]
[1723778622583,2.4585,142.34,142.33,0.04639089]
[1723778624981,2.4585,142.34,142.24,26.95]
[1723778625193,2.4592,142.31,142.26,5.0553]
[1723778625391,26.95,142.32,142.26,2.5955]
[1723778625585,2.4596,142.28,142.23,1.239]
[1723778625785,2.4596,142.28,142.23,2.4892]
[1723778626288,0.04484299,142.27,142.24,0.04971816]
[1723778626488,0.04484299,142.27,142.24,2.50981816]
[1723778626684,0.04484299,142.27,142.24,0.04971816]
[1723778627087,0.04484299,142.27,142.25,2.4599]
[1723778627587,4.96,142.34,142.24,26.99971816]
[1723778627782,4.96,142.34,142.27,2.4597]
[1723778627985,8.55471149,142.34,142.27,2.4597]
[1723778628391,2.4589,142.32,142.27,2.4597]
[1723778628587,0.04446143,142.32,142.29,0.05195294]
[1723778628789,2.4585,142.35,142.26,31.91]
[1723778629089,0.04508739,142.32,142.29,0.04803104]
[1723778629295,0.04508739,142.32,142.29,1.36693104]
[1723778629688,0.04508739,142.32,142.3,1.2715]
[1723778630796,0.04508739,142.32,142.31,2.459]
[1723778631393,35.42634404,142.37,142.3,1.2715]
[1723778631394,4.96,142.37,142.3,1.2715]
[1723778631891,7.4181,142.37,142.32,2.4588]
[1723778632490,7.4181,142.37,142.33,0.04515924]
[1723778632491,0.05212829,142.36,142.33,0.04515924]
[1723778632889,2.51032829,142.36,142.33,0.04515924]
[1723778633893,0.05212829,142.36,142.33,0.04515924]
[1723778634087,26.95,142.35,142.33,0.04515924]
[1723778634684,2.4585,142.34,142.33,0.04515924]
[1723778635888,26.95,142.34,142.33,0.04515924]
[1723778636086,26.95,142.31,142.27,1.3044]
[1723778637191,0.04693447,142.3,142.28,0.04786333]
[1723778638994,0.04693447,142.3,142.28,2.50736333]
[1723778639199,0.04693447,142.3,142.28,5.16986333]
[1723778639489,26.95,142.36,142.31,2.459]
[1723778639697,35.3638678,142.38,142.31,2.459]
[1723778639887,31.91,142.38,142.31,2.459]
[1723778640092,2.4583,142.35,142.3,2.4591]
[1723778640286,2.4583,142.35,142.28,2.6625]
[1723778640287,35.48342431,142.38,142.28,2.6625]
[1723778640696,0.0491266,142.34,142.32,0.04926098]
[1723778641092,2.5077266,142.34,142.32,0.04926098]
[1723778641498,0.0491266,142.34,142.32,0.04926098]
[1723778643096,2.4587,142.33,142.32,0.04926098]
[1723778643596,2.5076266,142.34,142.32,0.04926098]
[1723778645615,2.4587,142.33,142.32,0.04926098]
[1723778646312,0.0491266,142.34,142.32,0.04926098]
[1723778646911,2.5077266,142.34,142.32,0.04926098]
[1723778647809,2.4587,142.33,142.32,0.04926098]
[1723778649416,228.0,142.49,142.32,5.00926098]
[1723778649617,26.95,142.42,142.32,31.91]
[1723778649814,3.58517701,142.41,142.32,31.91]
[1723778650010,6.04257701,142.41,142.36,2.4581]
[1723778650516,2.50345878,142.4,142.37,0.05122356]
[1723778651116,2.4577,142.39,142.37,0.05122356]
[1723778651316,6.04803925,142.39,142.37,0.05122356]
[1723778651715,3.59033925,142.39,142.37,0.05122356]
[1723778653921,0.04595878,142.4,142.37,0.05122356]
[1723778654125,3.5151743,142.39,142.37,0.05122356]
[1723778654315,26.95,142.38,142.37,0.05122356]
[1723778654522,29.4078,142.38,142.37,0.05122356]
[1723778655026,32.88083013,142.38,142.37,0.05122356]
[1723778655823,30.42303013,142.38,142.37,0.05122356]
[1723778657817,32.88083013,142.38,142.37,0.05122356]
[1723778659225,30.42303013,142.38,142.29,2.6599]
[1723778659424,26.95,142.35,142.29,2.6599]
[1723778660329,0.05320023,142.33,142.31,0.05203179]
[1723778660524,26.95,142.37,142.31,0.05203179]
[1723778660730,0.05136509,142.33,142.31,2.51103179]
[1723778662126,0.05136509,142.33,142.31,0.05203179]
[1723778662433,5.04,142.39,142.31,27.00203179]
[1723778662636,3.52695066,142.4,142.36,2.458]
[1723778662828,26.95,142.41,142.31,27.00203179]
[1723778663030,26.95,142.41,142.31,26.95]
[1723778663229,29.4077,142.39,142.34,2.4585]
[1723778663429,26.95,142.39,142.3,26.95]
[1723778663624,26.95,142.39,142.29,2.6599]
[1723778663823,29.408,142.37,142.35,0.0534161]
[1723778664529,0.05009095,142.38,142.35,0.0534161]
[1723778664530,3.54549234,142.38,142.35,0.0534161]
[1723778665337,0.05009095,142.38,142.35,0.0534161]
[1723778666633,0.05009095,142.38,142.35,2.5117161]
[1723778668035,0.05009095,142.38,142.35,0.0534161]
[1723778669941,0.05009095,142.38,142.36,2.4581]
[1723778670438,0.05009095,142.38,142.35,2.5117161]
[1723778671240,0.05009095,142.38,142.36,2.4582]
[1723778672631,0.05009095,142.38,142.35,0.0534161]
[1723778672838,0.05009095,142.38,142.35,2.5117161]
[1723778673134,0.05009095,142.38,142.35,0.0534161]
[1723778674835,0.05009095,142.38,142.35,2.5117161]
[1723778680445,0.05009095,142.38,142.35,0.0534161]
[1723778680748,26.95,142.37,142.35,0.0534161]
[1723778681246,5.04,142.36,142.35,0.0534161]
[1723778681842,5.04,142.36,142.26,31.99]
[1723778682144,26.95,142.34,142.26,5.04]
[1723778682335,2.4589,142.32,142.27,2.4596]
[1723778682647,2.4589,142.32,142.26,5.04]
[1723778682842,2.4587,142.33,142.26,31.99]
[1723778683046,5.91141106,142.33,142.26,31.99]
[1723778683241,0.05358563,142.3,142.28,0.04711577]
[1723778683843,0.05358563,142.3,142.28,26.99711577]
[1723778684641,0.05358563,142.3,142.29,2.4594]
[1723778685654,0.05358563,142.3,142.28,29.45651577]
[1723778686345,0.05358563,142.3,142.28,2.50651577]
[1723778688343,0.05358563,142.3,142.28,0.04711577]
[1723778690245,0.05358563,142.3,142.28,2.50661577]
[1723778690445,0.05358563,142.3,142.28,0.04711577]
[1723778691052,0.05358563,142.3,142.29,2.4594]
[1723778691647,26.95,142.4,142.29,26.95]